[Event "Titled Tuesday Blitz June 6 Late 2023"]
[White "Mendez Fortes, Eduardo Jesus"]
[Black "Kovalevsky, Stanislav"]
[WhiteFideId "3502376"]
[BlackFideId "13508598"]
[WhiteElo "2307"]
[BlackElo "2112"]
[Result "1-0"]
[Round "11"]
[TimeControl "180+2"]
[Date "2023.06.07"]
[WhiteClock "0:00:09"]
[BlackClock "0:00:03"]
[Board "59"]

1. e4 {[%clk 0:03:00]}  e6 {[%clk 0:02:58]} 2. d4 {[%clk 0:03:00]}  d5 {[%clk 0:02:58]} 3. Nd2 {[%clk 0:03:00]}  dxe4 {[%clk 0:02:58]} 4. Nxe4 {[%clk 0:03:01]}  Nf6 {[%clk 0:02:59]} 5. Nxf6+ {[%clk 0:03:01]}  gxf6 {[%clk 0:02:59]} 6. Nf3 {[%clk 0:03:01]}  Nc6 {[%clk 0:03:00]} 7. c3 {[%clk 0:03:02]}  Ne7 {[%clk 0:03:00]} 8. Bd3 {[%clk 0:03:01]}  Bd7 {[%clk 0:03:00]} 9. Qe2 {[%clk 0:03:01]}  Bc6 {[%clk 0:03:01]} 10. Bf4 {[%clk 0:03:01]}  Rg8 {[%clk 0:03:00]} 11. Bg3 {[%clk 0:02:56]}  h5 {[%clk 0:02:58]} 12. O-O {[%clk 0:02:49]}  f5 {[%clk 0:02:16]} 13. Rad1 {[%clk 0:02:40]}  Bh6 {[%clk 0:02:01]} 14. c4 {[%clk 0:02:37]}  Bxf3 {[%clk 0:01:46]} 15. Qxf3 {[%clk 0:02:36]}  Qxd4 {[%clk 0:01:46]} 16. Qxb7 {[%clk 0:02:11]}  Rc8 {[%clk 0:01:45]} 17. Bxf5 {[%clk 0:01:49]}  Qb6 {[%clk 0:01:35]} 18. Qxb6 {[%clk 0:01:44]}  cxb6 {[%clk 0:01:35]} 19. Bd3 {[%clk 0:01:45]}  Rc5 {[%clk 0:01:23]} 20. Rfe1 {[%clk 0:01:42]}  Ra5 {[%clk 0:01:14]} 21. a3 {[%clk 0:01:42]}  Bg7 {[%clk 0:01:14]} 22. Re2 {[%clk 0:01:36]}  Bf6 {[%clk 0:01:12]} 23. Be4 {[%clk 0:01:30]}  Rag5 {[%clk 0:01:05]} 24. Red2 {[%clk 0:01:27]}  Nf5 {[%clk 0:01:01]} 25. Bc6+ {[%clk 0:01:15]}  Kf8 {[%clk 0:01:00]} 26. Bb8 {[%clk 0:01:08]}  a6 {[%clk 0:00:41]} 27. g3 {[%clk 0:01:01]}  h4 {[%clk 0:00:41]} 28. Kf1 {[%clk 0:00:57]}  hxg3 {[%clk 0:00:39]} 29. hxg3 {[%clk 0:00:56]}  Rg4 {[%clk 0:00:34]} 30. b3 {[%clk 0:00:47]}  Nd4 {[%clk 0:00:34]} 31. Bg2 {[%clk 0:00:27]}  Nxb3 {[%clk 0:00:32]} 32. Rd7 {[%clk 0:00:27]}  Rd4 {[%clk 0:00:23]} 33. R7xd4 {[%clk 0:00:20]}  Bxd4 {[%clk 0:00:24]} 34. Rd3 {[%clk 0:00:20]}  Ke7 {[%clk 0:00:16]} 35. Bf4 {[%clk 0:00:13]}  e5 {[%clk 0:00:16]} 36. Rxb3 {[%clk 0:00:12]}  exf4 {[%clk 0:00:16]} 37. gxf4 {[%clk 0:00:13]}  Kd6 {[%clk 0:00:14]} 38. Bd5 {[%clk 0:00:11]}  Rg4 {[%clk 0:00:11]} 39. Rf3 {[%clk 0:00:08]}  f6 {[%clk 0:00:09]} 40. Ke2 {[%clk 0:00:08]}  Kc5 {[%clk 0:00:08]} 41. Kd3 {[%clk 0:00:09]}  Rg1 {[%clk 0:00:06]} 42. Be6 {[%clk 0:00:09]}  Rd1+ {[%clk 0:00:04]} 43. Ke4 {[%clk 0:00:10]}  Rf1 {[%clk 0:00:03]} 44. Kf5 {[%clk 0:00:09]}  Rxf2 {[%clk 0:00:03]} 45. Rxf2 {[%clk 0:00:09]}  Bxf2 {[%clk 0:00:04]} 46. Kxf6 {[%clk 0:00:10]}  Bg3 {[%clk 0:00:04]} 47. f5 {[%clk 0:00:09]}  Bh4+ {[%clk 0:00:04]} 48. Kg6 {[%clk 0:00:10]}  b5 {[%clk 0:00:04]} 49. cxb5 {[%clk 0:00:09]}  axb5 {[%clk 0:00:05]} 50. f6 {[%clk 0:00:10]}  b4 {[%clk 0:00:06]} 51. a4 {[%clk 0:00:10]}  Kd4 {[%clk 0:00:06]} 52. f7 {[%clk 0:00:09]}  Be7 {[%clk 0:00:06]} 53. Kg7 {[%clk 0:00:09]}  Kc5 {[%clk 0:00:05]} 54. f8=Q {[%clk 0:00:08]}  Bxf8+ {[%clk 0:00:05]} 55. Kxf8 {[%clk 0:00:09]}  b3 {[%clk 0:00:02]} 56. Bxb3 {[%clk 0:00:09]}  Kb4 {[%clk 0:00:03]} 57. Bd1 {[%clk 0:00:09]}  Ka5 {[%clk 0:00:03]} 58. Ke7 {[%clk 0:00:09]} 1-0


[Site "https://www.chess.com"]

[Event "Titled Tuesday Blitz June 6 Late 2023"]
[White "Garcia Cuenca, Victor"]
[Black "Melian, Juan Sebastian"]
[WhiteFideId "2250829"]
[BlackFideId "3706575"]
[WhiteElo "2329"]
[BlackElo "2092"]
[Result "1/2-1/2"]
[Round "11"]
[TimeControl "180+2"]
[Date "2023.06.07"]
[WhiteClock "0:00:03"]
[BlackClock "0:00:07"]
[Board "60"]

1. Nf3 {[%clk 0:03:00]}  Nf6 {[%clk 0:02:56]} 2. b3 {[%clk 0:03:01]}  d5 {[%clk 0:02:55]} 3. Bb2 {[%clk 0:03:02]}  c6 {[%clk 0:02:56]} 4. g3 {[%clk 0:03:01]}  Bg4 {[%clk 0:02:54]} 5. Bg2 {[%clk 0:03:02]}  Nbd7 {[%clk 0:02:51]} 6. O-O {[%clk 0:03:02]}  e6 {[%clk 0:02:41]} 7. c4 {[%clk 0:02:59]}  Be7 {[%clk 0:02:41]} 8. d3 {[%clk 0:02:55]}  O-O {[%clk 0:02:41]} 9. Nbd2 {[%clk 0:02:55]}  a5 {[%clk 0:02:41]} 10. a3 {[%clk 0:02:54]}  h6 {[%clk 0:02:41]} 11. Qc2 {[%clk 0:02:51]}  Bf5 {[%clk 0:02:41]} 12. Rfe1 {[%clk 0:02:50]}  Bh7 {[%clk 0:02:40]} 13. e4 {[%clk 0:02:39]}  Nc5 {[%clk 0:02:28]} 14. Re3 {[%clk 0:02:29]}  dxe4 {[%clk 0:02:20]} 15. dxe4 {[%clk 0:02:24]}  Ng4 {[%clk 0:02:19]} 16. Re2 {[%clk 0:02:20]}  Bf6 {[%clk 0:02:19]} 17. Bxf6 {[%clk 0:02:16]}  Qxf6 {[%clk 0:02:20]} 18. Rb1 {[%clk 0:02:05]}  Rfd8 {[%clk 0:02:18]} 19. b4 {[%clk 0:02:01]}  axb4 {[%clk 0:02:14]} 20. axb4 {[%clk 0:02:02]}  Nd3 {[%clk 0:02:14]} 21. h3 {[%clk 0:01:42]}  Nge5 {[%clk 0:02:11]} 22. Nh2 {[%clk 0:01:38]}  g5 {[%clk 0:02:03]} 23. Ng4 {[%clk 0:01:27]}  Nxg4 {[%clk 0:02:01]} 24. hxg4 {[%clk 0:01:28]}  Ra1 {[%clk 0:01:53]} 25. b5 {[%clk 0:01:05]}  Rda8 {[%clk 0:01:36]} 26. Qxd3 {[%clk 0:00:54]}  Rxb1+ {[%clk 0:01:26]} 27. Nxb1 {[%clk 0:00:54]}  Ra1 {[%clk 0:01:26]} 28. Re1 {[%clk 0:00:55]}  Qb2 {[%clk 0:01:25]} 29. bxc6 {[%clk 0:00:48]}  bxc6 {[%clk 0:01:26]} 30. Rd1 {[%clk 0:00:44]}  Bg6 {[%clk 0:01:24]} 31. Nc3 {[%clk 0:00:34]}  Ra3 {[%clk 0:01:24]} 32. Qd8+ {[%clk 0:00:34]}  Kh7 {[%clk 0:01:24]} 33. Nb1 {[%clk 0:00:31]}  Ra1 {[%clk 0:01:24]} 34. Qd3 {[%clk 0:00:30]}  c5 {[%clk 0:01:21]} 35. Bf1 {[%clk 0:00:25]}  Qb4 {[%clk 0:01:12]} 36. Nc3 {[%clk 0:00:23]}  Ra3 {[%clk 0:01:10]} 37. Rc1 {[%clk 0:00:23]}  Qa5 {[%clk 0:01:06]} 38. Qc2 {[%clk 0:00:23]}  Qa8 {[%clk 0:01:05]} 39. Bd3 {[%clk 0:00:21]}  Kg7 {[%clk 0:01:02]} 40. e5 {[%clk 0:00:20]}  Qf3 {[%clk 0:00:53]} 41. Bxg6 {[%clk 0:00:19]}  fxg6 {[%clk 0:00:54]} 42. Ne4 {[%clk 0:00:19]}  Qxg4 {[%clk 0:00:52]} 43. Nf6 {[%clk 0:00:18]}  Qd4 {[%clk 0:00:49]} 44. Rd1 {[%clk 0:00:17]}  Qxe5 {[%clk 0:00:49]} 45. Ne8+ {[%clk 0:00:15]}  Kf8 {[%clk 0:00:49]} 46. Qxg6 {[%clk 0:00:14]}  Ra1 {[%clk 0:00:48]} 47. Rxa1 {[%clk 0:00:11]}  Qxa1+ {[%clk 0:00:49]} 48. Kg2 {[%clk 0:00:12]}  Qa8+ {[%clk 0:00:49]} 49. Kh2 {[%clk 0:00:10]}  Qxe8 {[%clk 0:00:50]} 50. Qxh6+ {[%clk 0:00:11]}  Kf7 {[%clk 0:00:50]} 51. Qxg5 {[%clk 0:00:10]}  Qh8+ {[%clk 0:00:49]} 52. Kg2 {[%clk 0:00:08]}  Qc3 {[%clk 0:00:48]} 53. Qxc5 {[%clk 0:00:08]}  Qc2 {[%clk 0:00:47]} 54. Qd4 {[%clk 0:00:07]}  Qa4 {[%clk 0:00:43]} 55. Qf4+ {[%clk 0:00:07]}  Ke7 {[%clk 0:00:43]} 56. Qe4 {[%clk 0:00:06]}  Qb4 {[%clk 0:00:42]} 57. Qd4 {[%clk 0:00:05]}  Qb7+ {[%clk 0:00:42]} 58. f3 {[%clk 0:00:04]}  Qb1 {[%clk 0:00:41]} 59. g4 {[%clk 0:00:05]}  Qe1 {[%clk 0:00:38]} 60. c5 {[%clk 0:00:04]}  Qe2+ {[%clk 0:00:38]} 61. Kg3 {[%clk 0:00:04]}  Qe1+ {[%clk 0:00:38]} 62. Kf4 {[%clk 0:00:05]}  Qc1+ {[%clk 0:00:35]} 63. Ke4 {[%clk 0:00:04]}  Qc2+ {[%clk 0:00:30]} 64. Kf4 {[%clk 0:00:03]}  Qc1+ {[%clk 0:00:27]} 65. Ke4 {[%clk 0:00:03]}  Qc2+ {[%clk 0:00:25]} 66. Ke3 {[%clk 0:00:03]}  Qc1+ {[%clk 0:00:23]} 67. Kd3 {[%clk 0:00:04]}  Qd1+ {[%clk 0:00:22]} 68. Kc4 {[%clk 0:00:04]}  Qa4+ {[%clk 0:00:18]} 69. Kc3 {[%clk 0:00:04]}  Qa1+ {[%clk 0:00:18]} 70. Kd3 {[%clk 0:00:04]}  Qb1+ {[%clk 0:00:14]} 71. Kc3 {[%clk 0:00:03]}  Qa1+ {[%clk 0:00:13]} 72. Kc4 {[%clk 0:00:04]}  Qa4+ {[%clk 0:00:12]} 73. Kd3 {[%clk 0:00:04]}  Qd1+ {[%clk 0:00:11]} 74. Ke3 {[%clk 0:00:04]}  Qg1+ {[%clk 0:00:10]} 75. Ke4 {[%clk 0:00:03]}  Qe1+ {[%clk 0:00:07]} 76. Qe3 {[%clk 0:00:04]}  Qb4+ {[%clk 0:00:07]} 77. Qd4 {[%clk 0:00:03]}  Qb1+ {[%clk 0:00:06]} 78. Kf4 {[%clk 0:00:03]}  Qc1+ {[%clk 0:00:07]} 1/2-1/2


[Site "https://www.chess.com"]

[Event "Titled Tuesday Blitz June 6 Late 2023"]
[White "Janaszak, Dawid"]
[Black "Abduzhaparov"]
[WhiteFideId "1119206"]
[WhiteElo "2220"]
[BlackElo "2413"]
[Result "0-1"]
[Round "11"]
[TimeControl "180+2"]
[Date "2023.06.07"]
[WhiteClock "0:01:22"]
[BlackClock "0:00:44"]
[Board "63"]

1. d4 {[%clk 0:03:00]}  d6 {[%clk 0:03:00]} 2. e4 {[%clk 0:02:58]}  Nf6 {[%clk 0:03:01]} 3. Nc3 {[%clk 0:02:57]}  e5 {[%clk 0:03:02]} 4. Nge2 {[%clk 0:02:56]}  exd4 {[%clk 0:03:02]} 5. Nxd4 {[%clk 0:02:56]}  Be7 {[%clk 0:03:02]} 6. g3 {[%clk 0:02:56]}  O-O {[%clk 0:03:03]} 7. Bg2 {[%clk 0:02:56]}  Re8 {[%clk 0:03:04]} 8. O-O {[%clk 0:02:56]}  Nbd7 {[%clk 0:03:04]} 9. h3 {[%clk 0:02:55]}  Bf8 {[%clk 0:03:05]} 10. g4 {[%clk 0:02:55]}  Nc5 {[%clk 0:03:05]} 11. Re1 {[%clk 0:02:53]}  a5 {[%clk 0:03:04]} 12. g5 {[%clk 0:02:50]}  Nfd7 {[%clk 0:03:04]} 13. f4 {[%clk 0:02:51]}  c6 {[%clk 0:03:02]} 14. a4 {[%clk 0:02:50]}  Qb6 {[%clk 0:02:58]} 15. Kh1 {[%clk 0:02:45]}  Qc7 {[%clk 0:02:42]} 16. h4 {[%clk 0:02:41]}  Nb6 {[%clk 0:02:42]} 17. h5 {[%clk 0:02:36]}  Qd7 {[%clk 0:02:38]} 18. f5 {[%clk 0:02:30]}  d5 {[%clk 0:02:29]} 19. e5 {[%clk 0:02:27]}  Ne4 {[%clk 0:02:18]} 20. Bf4 {[%clk 0:02:15]}  Nf2+ {[%clk 0:01:58]} 21. Kh2 {[%clk 0:02:16]}  Nxd1 {[%clk 0:01:59]} 22. Raxd1 {[%clk 0:02:16]}  c5 {[%clk 0:01:41]} 23. e6 {[%clk 0:02:16]}  fxe6 {[%clk 0:01:35]} 24. fxe6 {[%clk 0:02:14]}  Qd8 {[%clk 0:01:32]} 25. Ndb5 {[%clk 0:02:06]}  Bxe6 {[%clk 0:01:30]} 26. Nc7 {[%clk 0:01:54]}  Bd6 {[%clk 0:01:15]} 27. Nxe8 {[%clk 0:01:21]}  Bxf4+ {[%clk 0:01:13]} 28. Kh1 {[%clk 0:01:21]}  Qxe8 {[%clk 0:00:50]} 29. Bh3 {[%clk 0:01:22]}  Qxh5 {[%clk 0:00:44]} 0-1


[Site "https://www.chess.com"]

[Event "Titled Tuesday Blitz June 6 Late 2023"]
[White "Prado Lobo, Jonas"]
[Black "Ansh M Shah"]
[WhiteFideId "32050666"]
[BlackFideId "25033379"]
[WhiteElo "2322"]
[BlackElo "2084"]
[Result "1-0"]
[Round "11"]
[TimeControl "180+2"]
[Date "2023.06.07"]
[WhiteClock "0:01:09"]
[BlackClock "0:00:02"]
[Board "65"]

1. d4 {[%clk 0:03:00]}  c6 {[%clk 0:02:57]} 2. Nc3 {[%clk 0:02:57]}  d5 {[%clk 0:02:58]} 3. Bf4 {[%clk 0:02:56]}  Bf5 {[%clk 0:02:56]} 4. e3 {[%clk 0:02:55]}  e6 {[%clk 0:02:57]} 5. Nf3 {[%clk 0:02:55]}  Nf6 {[%clk 0:02:57]} 6. Ne5 {[%clk 0:02:55]}  Nbd7 {[%clk 0:02:55]} 7. g4 {[%clk 0:02:47]}  Bg6 {[%clk 0:02:48]} 8. h4 {[%clk 0:02:46]}  Nxe5 {[%clk 0:01:16]} 9. dxe5 {[%clk 0:02:46]}  d4 {[%clk 0:01:16]} 10. Qxd4 {[%clk 0:02:13]}  Qxd4 {[%clk 0:01:11]} 11. exd4 {[%clk 0:02:14]}  Nxg4 {[%clk 0:01:12]} 12. f3 {[%clk 0:02:04]}  Nh6 {[%clk 0:01:12]} 13. h5 {[%clk 0:02:01]}  Bxc2 {[%clk 0:01:08]} 14. Ne4 {[%clk 0:01:57]}  Nf5 {[%clk 0:01:01]} 15. Rc1 {[%clk 0:01:46]}  Bxe4 {[%clk 0:00:50]} 16. fxe4 {[%clk 0:01:47]}  Nxd4 {[%clk 0:00:51]} 17. Bg2 {[%clk 0:01:43]}  O-O-O {[%clk 0:00:41]} 18. Kf2 {[%clk 0:01:41]}  Be7 {[%clk 0:00:40]} 19. Rhd1 {[%clk 0:01:40]}  Rd7 {[%clk 0:00:27]} 20. Bf1 {[%clk 0:01:38]}  Rhd8 {[%clk 0:00:23]} 21. Be3 {[%clk 0:01:38]}  g6 {[%clk 0:00:12]} 22. hxg6 {[%clk 0:01:37]}  hxg6 {[%clk 0:00:13]} 23. Rd2 {[%clk 0:01:27]}  Kb8 {[%clk 0:00:11]} 24. Rcd1 {[%clk 0:01:26]}  c5 {[%clk 0:00:11]} 25. b4 {[%clk 0:01:25]}  b6 {[%clk 0:00:11]} 26. bxc5 {[%clk 0:01:22]}  Bxc5 {[%clk 0:00:12]} 27. Bb5 {[%clk 0:01:19]}  Nxb5 {[%clk 0:00:09]} 28. Rxd7 {[%clk 0:01:19]}  Rxd7 {[%clk 0:00:05]} 29. Rxd7 {[%clk 0:01:20]}  Bxe3+ {[%clk 0:00:05]} 30. Kxe3 {[%clk 0:01:20]}  Nc3 {[%clk 0:00:04]} 31. Rxf7 {[%clk 0:01:14]}  Nxa2 {[%clk 0:00:04]} 32. Re7 {[%clk 0:01:15]}  Nc3 {[%clk 0:00:03]} 33. Rxe6 {[%clk 0:01:15]}  a5 {[%clk 0:00:03]} 34. Rxg6 {[%clk 0:01:14]}  Kc7 {[%clk 0:00:03]} 35. Kd4 {[%clk 0:01:10]}  Nb5+ {[%clk 0:00:03]} 36. Kc4 {[%clk 0:01:08]}  Na3+ {[%clk 0:00:03]} 37. Kd5 {[%clk 0:01:08]}  Nc2 {[%clk 0:00:03]} 38. Rg7+ {[%clk 0:01:08]}  Kd8 {[%clk 0:00:01]} 39. e6 {[%clk 0:01:09]}  Nb4+ {[%clk 0:00:02]} 40. Kd6 {[%clk 0:01:09]}  Kc8 {[%clk 0:00:02]} 41. e7 {[%clk 0:01:09]} 1-0


[Site "https://www.chess.com"]

[Event "Titled Tuesday Blitz June 6 Late 2023"]
[White "Kujawski, Adam"]
[Black "Ismayil, Malak"]
[WhiteFideId "1100920"]
[BlackFideId "13412604"]
[WhiteElo "2054"]
[BlackElo "1868"]
[Result "1/2-1/2"]
[Round "11"]
[TimeControl "180+2"]
[Date "2023.06.07"]
[WhiteClock "0:00:14"]
[BlackClock "0:01:43"]
[Board "67"]

1. e4 {[%clk 0:03:00]}  e5 {[%clk 0:02:55]} 2. Nf3 {[%clk 0:03:00]}  Nc6 {[%clk 0:02:55]} 3. Bb5 {[%clk 0:03:01]}  a6 {[%clk 0:02:56]} 4. Ba4 {[%clk 0:03:01]}  Nf6 {[%clk 0:02:56]} 5. O-O {[%clk 0:03:01]}  b5 {[%clk 0:02:57]} 6. Bb3 {[%clk 0:03:00]}  Be7 {[%clk 0:02:58]} 7. d4 {[%clk 0:02:59]}  d6 {[%clk 0:02:56]} 8. dxe5 {[%clk 0:02:59]}  Nxe5 {[%clk 0:02:57]} 9. Nxe5 {[%clk 0:02:59]}  dxe5 {[%clk 0:02:58]} 10. Qxd8+ {[%clk 0:02:59]}  Bxd8 {[%clk 0:02:59]} 11. a4 {[%clk 0:02:58]}  b4 {[%clk 0:02:58]} 12. a5 {[%clk 0:02:52]}  Bb7 {[%clk 0:02:55]} 13. f3 {[%clk 0:02:52]}  O-O {[%clk 0:02:54]} 14. Be3 {[%clk 0:02:51]}  Be7 {[%clk 0:02:54]} 15. Nd2 {[%clk 0:02:51]}  Rfd8 {[%clk 0:02:54]} 16. Nc4 {[%clk 0:02:50]}  Nd7 {[%clk 0:02:53]} 17. Rfd1 {[%clk 0:02:43]}  Kf8 {[%clk 0:02:53]} 18. Kf2 {[%clk 0:02:43]}  f6 {[%clk 0:02:53]} 19. Ke2 {[%clk 0:02:34]}  Nc5 {[%clk 0:02:53]} 20. Bxc5 {[%clk 0:02:25]}  Bxc5 {[%clk 0:02:54]} 21. Ne3 {[%clk 0:02:22]}  Bxe3 {[%clk 0:02:51]} 22. Kxe3 {[%clk 0:02:22]}  Ke7 {[%clk 0:02:51]} 23. Bc4 {[%clk 0:01:26]}  c5 {[%clk 0:02:50]} 24. g3 {[%clk 0:01:16]}  Rd4 {[%clk 0:02:50]} 25. Be2 {[%clk 0:00:59]}  Bc6 {[%clk 0:02:40]} 26. c3 {[%clk 0:00:57]}  bxc3 {[%clk 0:02:39]} 27. bxc3 {[%clk 0:00:57]}  Rxd1 {[%clk 0:02:39]} 28. Rxd1 {[%clk 0:00:55]}  Rb8 {[%clk 0:02:31]} 29. Ra1 {[%clk 0:00:31]}  Bb5 {[%clk 0:02:29]} 30. Rb1 {[%clk 0:00:29]}  Rb7 {[%clk 0:02:13]} 31. Bc4 {[%clk 0:00:18]}  Kd6 {[%clk 0:02:11]} 32. Bd5 {[%clk 0:00:18]}  Ra7 {[%clk 0:01:58]} 33. c4 {[%clk 0:00:17]}  Bd7 {[%clk 0:01:59]} 34. Rb6+ {[%clk 0:00:17]}  Kc7 {[%clk 0:01:56]} 35. f4 {[%clk 0:00:17]}  Bc8 {[%clk 0:01:48]} 36. h4 {[%clk 0:00:16]}  Bd7 {[%clk 0:01:45]} 37. h5 {[%clk 0:00:16]}  h6 {[%clk 0:01:45]} 38. g4 {[%clk 0:00:15]}  Bxg4 {[%clk 0:01:43]} 39. fxe5 {[%clk 0:00:15]}  fxe5 {[%clk 0:01:43]} 40. Rg6 {[%clk 0:00:15]}  Bxh5 {[%clk 0:01:41]} 41. Rxg7+ {[%clk 0:00:16]}  Kb8 {[%clk 0:01:42]} 42. Rg8+ {[%clk 0:00:16]}  Kc7 {[%clk 0:01:42]} 43. Rg7+ {[%clk 0:00:16]}  Kb8 {[%clk 0:01:43]} 44. Rg8+ {[%clk 0:00:15]}  Kc7 {[%clk 0:01:43]} 45. Rg7+ {[%clk 0:00:14]} 1/2-1/2


[Site "https://www.chess.com"]

[Event "Titled Tuesday Blitz June 6 Late 2023"]
[White "Seletsky, Grigory"]
[Black "Lalanne, Pablo"]
[WhiteFideId "14112191"]
[BlackFideId "112151"]
[WhiteElo "2491"]
[BlackElo "2120"]
[Result "1/2-1/2"]
[Round "11"]
[TimeControl "180+2"]
[Date "2023.06.07"]
[WhiteClock "0:00:33"]
[BlackClock "0:00:37"]
[Board "68"]

1. d4 {[%clk 0:02:37]}  d5 {[%clk 0:02:58]} 2. c4 {[%clk 0:02:36]}  e6 {[%clk 0:02:59]} 3. Nc3 {[%clk 0:02:35]}  c5 {[%clk 0:02:59]} 4. cxd5 {[%clk 0:02:34]}  exd5 {[%clk 0:03:00]} 5. Nf3 {[%clk 0:02:34]}  Nc6 {[%clk 0:03:00]} 6. g3 {[%clk 0:02:34]}  Nf6 {[%clk 0:03:00]} 7. Bg2 {[%clk 0:02:34]}  Be7 {[%clk 0:03:01]} 8. O-O {[%clk 0:02:35]}  O-O {[%clk 0:03:01]} 9. b3 {[%clk 0:02:34]}  Ne4 {[%clk 0:03:00]} 10. Bb2 {[%clk 0:02:33]}  Bf6 {[%clk 0:03:01]} 11. Nxe4 {[%clk 0:02:22]}  dxe4 {[%clk 0:03:00]} 12. Ne5 {[%clk 0:02:23]}  Nxd4 {[%clk 0:02:54]} 13. e3 {[%clk 0:02:21]}  Bxe5 {[%clk 0:02:50]} 14. exd4 {[%clk 0:02:22]}  cxd4 {[%clk 0:02:44]} 15. Bxe4 {[%clk 0:02:20]}  Qf6 {[%clk 0:02:37]} 16. f4 {[%clk 0:02:14]}  Bc7 {[%clk 0:02:28]} 17. Bxd4 {[%clk 0:02:12]}  Bb6 {[%clk 0:02:19]} 18. Bxb6 {[%clk 0:02:11]}  Qxb6+ {[%clk 0:02:20]} 19. Rf2 {[%clk 0:02:11]}  Re8 {[%clk 0:02:05]} 20. Bf3 {[%clk 0:02:08]}  Bf5 {[%clk 0:01:59]} 21. Qd2 {[%clk 0:02:03]}  Rad8 {[%clk 0:01:58]} 22. Qb2 {[%clk 0:02:03]}  Rd3 {[%clk 0:01:46]} 23. Kg2 {[%clk 0:02:00]}  Red8 {[%clk 0:01:44]} 24. Re1 {[%clk 0:01:59]}  h6 {[%clk 0:01:42]} 25. Re7 {[%clk 0:01:55]}  R3d7 {[%clk 0:01:37]} 26. Qe5 {[%clk 0:01:44]}  Be6 {[%clk 0:01:28]} 27. Rxd7 {[%clk 0:01:40]}  Bxd7 {[%clk 0:01:27]} 28. Qe7 {[%clk 0:01:31]}  Bc6 {[%clk 0:01:25]} 29. Re2 {[%clk 0:01:26]}  Re8 {[%clk 0:01:20]} 30. Qxe8+ {[%clk 0:01:23]}  Bxe8 {[%clk 0:01:20]} 31. Rxe8+ {[%clk 0:01:24]}  Kh7 {[%clk 0:01:21]} 32. Be4+ {[%clk 0:01:19]}  g6 {[%clk 0:01:21]} 33. Re7 {[%clk 0:01:18]}  Kg7 {[%clk 0:01:17]} 34. Rxb7 {[%clk 0:01:15]}  Qd4 {[%clk 0:01:10]} 35. Bf3 {[%clk 0:01:05]}  h5 {[%clk 0:01:01]} 36. a4 {[%clk 0:00:59]}  a5 {[%clk 0:00:57]} 37. Rb5 {[%clk 0:00:56]}  f5 {[%clk 0:00:51]} 38. h4 {[%clk 0:00:52]}  Kh6 {[%clk 0:00:49]} 39. Be2 {[%clk 0:00:48]}  Qe3 {[%clk 0:00:45]} 40. Bc4 {[%clk 0:00:34]}  Qd2+ {[%clk 0:00:42]} 41. Kf3 {[%clk 0:00:34]}  Qd1+ {[%clk 0:00:40]} 42. Kf2 {[%clk 0:00:33]}  Qd2+ {[%clk 0:00:38]} 43. Kf3 {[%clk 0:00:33]}  Qd1+ {[%clk 0:00:36]} 44. Kf2 {[%clk 0:00:33]}  Qd2+ {[%clk 0:00:37]} 45. Kf3 {[%clk 0:00:33]} 1/2-1/2


[Site "https://www.chess.com"]

[Event "Titled Tuesday Blitz June 6 Late 2023"]
[White "Garmendiarov"]
[Black "Prydun, Andriy"]
[BlackFideId "14145898"]
[WhiteElo "2468"]
[BlackElo "2164"]
[Result "0-1"]
[Round "11"]
[TimeControl "180+2"]
[Date "2023.06.07"]
[WhiteClock "0:00:02"]
[BlackClock "0:00:06"]
[Board "69"]

1. d4 {[%clk 0:03:00]}  Nf6 {[%clk 0:02:59]} 2. Bf4 {[%clk 0:03:01]}  c5 {[%clk 0:02:54]} 3. e3 {[%clk 0:03:01]}  cxd4 {[%clk 0:02:54]} 4. exd4 {[%clk 0:03:02]}  Qb6 {[%clk 0:02:47]} 5. Na3 {[%clk 0:02:43]}  Nc6 {[%clk 0:02:33]} 6. Nf3 {[%clk 0:02:07]}  Qxb2 {[%clk 0:02:05]} 7. Nb5 {[%clk 0:02:05]}  Nd5 {[%clk 0:02:06]} 8. Rb1 {[%clk 0:01:15]}  Qxa2 {[%clk 0:02:04]} 9. Ra1 {[%clk 0:01:15]}  Qb2 {[%clk 0:02:03]} 10. Bd2 {[%clk 0:01:15]}  Ncb4 {[%clk 0:01:42]} 11. Bd3 {[%clk 0:00:44]}  Nxd3+ {[%clk 0:01:39]} 12. cxd3 {[%clk 0:00:44]}  Qxb5 {[%clk 0:01:40]} 13. O-O {[%clk 0:00:44]}  g6 {[%clk 0:01:25]} 14. Ne5 {[%clk 0:00:29]}  Bg7 {[%clk 0:01:24]} 15. Qf3 {[%clk 0:00:23]}  O-O {[%clk 0:01:05]} 16. Rfb1 {[%clk 0:00:22]}  Qxb1+ {[%clk 0:00:55]} 17. Rxb1 {[%clk 0:00:23]}  e6 {[%clk 0:00:54]} 18. h4 {[%clk 0:00:21]}  h5 {[%clk 0:00:40]} 19. Qg3 {[%clk 0:00:16]}  b6 {[%clk 0:00:37]} 20. Rc1 {[%clk 0:00:11]}  a5 {[%clk 0:00:25]} 21. Rb1 {[%clk 0:00:11]}  a4 {[%clk 0:00:22]} 22. Ra1 {[%clk 0:00:10]}  b5 {[%clk 0:00:13]} 23. Qf3 {[%clk 0:00:06]}  b4 {[%clk 0:00:11]} 24. Qd1 {[%clk 0:00:04]}  b3 {[%clk 0:00:10]} 25. Qc1 {[%clk 0:00:04]}  Ba6 {[%clk 0:00:10]} 26. Qb2 {[%clk 0:00:02]}  Bb5 {[%clk 0:00:10]} 27. Nc4 {[%clk 0:00:02]}  Rfb8 {[%clk 0:00:09]} 28. Bc3 {[%clk 0:00:02]}  Bc6 {[%clk 0:00:08]} 29. Na3 {[%clk 0:00:03]}  Bf8 {[%clk 0:00:08]} 30. Rc1 {[%clk 0:00:03]}  Nxc3 {[%clk 0:00:07]} 31. Rxc3 {[%clk 0:00:02]}  Bd5 {[%clk 0:00:08]} 32. Rc1 {[%clk 0:00:02]}  Bb4 {[%clk 0:00:06]} 33. Nc4 {[%clk 0:00:02]}  Be7 {[%clk 0:00:06]} 34. Qd2 {[%clk 0:00:02]}  a3 {[%clk 0:00:06]} 35. Nxa3 {[%clk 0:00:01]}  Bxa3 {[%clk 0:00:05]} 36. Rb1 {[%clk 0:00:01]}  b2 {[%clk 0:00:06]} 37. Qc2 {[%clk 0:00:01]}  Ba2 {[%clk 0:00:06]} 38. Qe2 {[%clk 0:00:02]}  Bxb1 {[%clk 0:00:06]} 39. Qe5 {[%clk 0:00:02]}  Bxd3 {[%clk 0:00:06]} 40. f4 {[%clk 0:00:03]}  Bf5 {[%clk 0:00:07]} 41. Qf6 {[%clk 0:00:03]}  b1=Q+ {[%clk 0:00:07]} 42. Kh2 {[%clk 0:00:04]}  Qe4 {[%clk 0:00:08]} 43. d5 {[%clk 0:00:03]}  Bf8 {[%clk 0:00:08]} 44. g3 {[%clk 0:00:04]}  Ra2+ {[%clk 0:00:05]} 45. Kg1 {[%clk 0:00:02]}  Qg2# {[%clk 0:00:06]} 0-1


[Site "https://www.chess.com"]